[Event "Schack-SM 2022: Mastarklassen"]
[Site "Fyrishov, Idrottsgatan 2, Uppsala, Sweden"]
[Date "2022.07.10"]
[Round "9.6"]
[White "Hammarstrom, Ulf"]
[Black "Styf, Josef"]
[Result "1/2-1/2"]
[TimeControl "90 minutes for 40 moves + 30 minutes for the rest of the game + 30 seconds per move from move one."]
[WhiteFideId "1710214"]
[BlackFideId "1708279"]
[WhiteElo "2233"]
[BlackElo "2048"]

1. d4 {[%clk 01:30:51]} {[%emt 00:00:09]} Nf6 {[%clk 01:30:52]} {[%emt
00:00:08]} 2. Bf4 {[%clk 01:31:12]} {[%emt 00:00:09]} d6 {[%clk 01:31:03]}
{[%emt 00:00:19]} 3. e3 {[%emt 00:00:25]} g6 {[%clk 01:27:52]} {[%emt
00:03:26]} 4. Nf3 {[%clk 01:31:33]} {[%emt 00:00:28]} Bg7 {[%clk 01:27:57]}
{[%emt 00:00:25]} 5. Be2 {[%clk 01:31:42]} {[%emt 00:00:22]} O-O {[%clk
01:28:10]} {[%emt 00:00:17]} 6. h3 {[%clk 01:32:07]} {[%emt 00:00:05]} c5
{[%clk 01:25:42]} {[%emt 00:02:57]} 7. c3 {[%clk 01:32:12]} {[%emt 00:00:26]}
Nc6 {[%clk 01:25:13]} {[%emt 00:00:59]} 8. O-O {[%clk 01:28:09]} {[%emt
00:04:34]} Bf5 {[%clk 01:17:15]} {[%emt 00:08:28]} 9. Nbd2 {[%clk 01:21:51]}
{[%emt 00:06:48]} cxd4 {[%clk 01:11:53]} {[%emt 00:05:52]} 10. exd4 {[%clk
01:20:48]} {[%emt 00:01:33]} Nd5 {[%clk 01:07:11]} {[%emt 00:05:12]} 11. Bh2
{[%clk 01:20:10]} {[%emt 00:01:08]} e5 {[%clk 00:58:26]} {[%emt 00:09:16]} 12.
dxe5 {[%clk 01:19:52]} dxe5 {[%clk 00:57:58]} {[%emt 00:01:46]} 13. Nb3 {[%clk
01:17:05]} e4 {[%clk 00:50:25]} {[%emt 00:11:19]} 14. Nfd4 {[%clk 01:17:06]}
Be5 {[%clk 00:47:54]} {[%emt 00:03:30]} 15. Nxf5 {[%clk 01:16:40]} Bxh2+ {[%clk
00:47:10]} {[%emt 00:02:11]} 16. Kxh2 {[%clk 01:17:04]} gxf5 {[%clk 00:47:31]}
{[%emt 00:00:14]} 17. Qd2 {[%clk 01:09:54]} Qd6+ {[%clk 00:45:18]} {[%emt
00:10:23]} 18. Kh1 {[%clk 01:07:18]} Rad8 {[%clk 00:41:48]} {[%emt 00:07:06]}
19. Bc4 {[%clk 00:58:01]} Nb6 {[%clk 00:28:28]} {[%emt 00:23:37]} 20. Qxd6
{[%clk 00:58:03]} Rxd6 {[%clk 00:28:52]} {[%emt 00:00:35]} 21. Be2 {[%clk
00:57:53]} Na4 {[%clk 00:27:35]} {[%emt 00:02:26]} 22. Rab1 {[%clk 00:56:53]}
a6 {[%clk 00:26:51]} {[%emt 00:02:44]} 23. Rfc1 {[%clk 00:51:07]} Kg7 {[%clk
00:22:22]} {[%emt 00:11:15]} 24. Kg1 {[%clk 00:50:55]} Kf6 {[%clk 00:22:04]}
{[%emt 00:01:30]} 25. Kf1 {[%clk 00:51:21]} f4 {[%clk 00:20:02]} {[%emt
00:02:36]} 26. Rd1 {[%clk 00:49:42]} Rfd8 {[%clk 00:19:46]} {[%emt 00:02:56]}
27. Rxd6+ {[%clk 00:48:41]} Rxd6 {[%clk 00:20:10]} {[%emt 00:01:37]} 28. Ke1
{[%clk 00:46:53]} Ke5 {[%clk 00:17:05]} {[%emt 00:05:53]} 29. Nd2 {[%clk
00:45:53]} Na5 {[%clk 00:14:00]} {[%emt 00:05:05]} 30. Bd1 {[%clk 00:40:35]}
Nb6 {[%clk 00:13:39]} {[%emt 00:06:39]} 31. Nb3 {[%clk 00:37:34]} Nxb3 {[%clk
00:13:44]} {[%emt 00:03:56]} 32. Bxb3 {[%clk 00:37:47]} f5 {[%clk 00:13:50]}
{[%emt 00:00:40]} 33. Ke2 {[%clk 00:35:32]} Nd7 {[%clk 00:11:41]} {[%emt
00:05:25]} 1/2-1/2

[Event "Schack-SM 2022: Mastarklassen"]
[Site "Fyrishov, Idrottsgatan 2, Uppsala, Sweden"]
[Date "2022.07.10"]
[Round "9.7"]
[White "Joensson, Jacob"]
[Black "Eriksson, Jorgen"]
[Result "1/2-1/2"]
[TimeControl "90 minutes for 40 moves + 30 minutes for the rest of the game + 30 seconds per move from move one."]
[WhiteFideId "1726315"]
[BlackFideId "1701967"]
[WhiteElo "1947"]
[BlackElo "2200"]

1. d4 {[%clk 01:30:58]} {[%emt 00:00:02]} e6 {[%clk 01:30:12]} {[%emt
00:00:48]} 2. c4 {[%clk 01:31:22]} {[%emt 00:00:06]} d5 {[%clk 01:30:26]}
{[%emt 00:00:15]} 3. Nf3 {[%clk 01:31:46]} {[%emt 00:00:06]} Nf6 {[%clk
01:30:26]} {[%emt 00:00:30]} 4. Nc3 {[%clk 01:32:07]} {[%emt 00:00:10]} Bb4
{[%clk 01:30:26]} {[%emt 00:00:29]} 5. Bg5 {[%clk 01:32:05]} {[%emt 00:00:32]}
Nbd7 {[%clk 01:30:14]} {[%emt 00:00:42]} 6. e3 {[%clk 01:31:40]} {[%emt
00:00:56]} c5 {[%clk 01:21:46]} {[%emt 00:08:58]} 7. cxd5 {[%clk 01:28:08]}
{[%emt 00:04:02]} exd5 {[%clk 01:22:05]} {[%emt 00:00:09]} 8. Bd3 {[%clk
01:28:09]} {[%emt 00:00:30]} Qa5 {[%clk 01:21:23]} {[%emt 00:01:11]} 9. Qc2
{[%clk 01:24:08]} {[%emt 00:04:32]} c4 {[%clk 01:19:26]} {[%emt 00:02:27]} 10.
Bf5 {[%clk 01:24:14]} {[%emt 00:00:25]} O-O {[%clk 01:17:21]} {[%emt 00:02:35]}
11. O-O {[%clk 01:23:44]} {[%emt 00:01:00]} Re8 {[%clk 01:13:18]} {[%emt
00:04:33]} 12. Bf4 {[%clk 00:45:23]} {[%emt 00:38:52]} g6 {[%clk 01:05:52]}
{[%emt 00:07:55]} 13. Bh3 {[%clk 00:44:50]} {[%emt 00:01:03]} Nb6 {[%clk
01:01:52]} {[%emt 00:04:30]} 14. Bxc8 {[%clk 00:42:41]} {[%emt 00:02:40]} Raxc8
{[%clk 01:01:47]} {[%emt 00:00:34]} 15. Be5 {[%clk 00:39:18]} {[%emt 00:03:53]}
Nbd7 {[%clk 00:57:40]} {[%emt 00:04:37]} 16. Rfe1 {[%clk 00:38:15]} {[%emt
00:01:33]} Ne4 {[%clk 00:55:40]} {[%emt 00:02:30]} 17. Rac1 {[%clk 00:35:42]}
{[%emt 00:03:03]} Rc6 {[%clk 00:34:48]} {[%emt 00:21:22]} 18. Re2 {[%clk
00:34:35]} {[%emt 00:01:37]} f6 {[%clk 00:28:07]} {[%emt 00:07:12]} 19. Bf4
{[%clk 00:34:06]} {[%emt 00:00:58]} Rce6 {[%clk 00:21:14]} {[%emt 00:07:23]} 20.
h4 {[%clk 00:28:45]} {[%emt 00:05:51]} Kg7 {[%clk 00:17:21]} {[%emt 00:04:24]}
21. Nd2 {[%clk 00:27:30]} {[%emt 00:01:45]} Nxd2 {[%clk 00:17:00]} {[%emt
00:00:51]} 22. Qxd2 {[%clk 00:27:40]} {[%emt 00:00:21]} Bd6 {[%clk 00:12:54]}
{[%emt 00:04:36]} 23. Bxd6 {[%clk 00:26:57]} {[%emt 00:01:13]} Rxd6 {[%clk
00:13:23]} {[%emt 00:00:02]} 24. Rce1 {[%clk 00:26:57]} {[%emt 00:00:29]} f5
{[%clk 00:12:59]} {[%emt 00:00:55]} 25. h5 {[%clk 00:26:18]} {[%emt 00:01:08]}
Nf6 {[%clk 00:13:00]} {[%emt 00:00:29]} 26. h6+ {[%clk 00:26:29]} {[%emt
00:00:19]} Kg8 {[%clk 00:12:11]} {[%emt 00:01:19]} 27. f3 {[%clk 00:26:18]}
{[%emt 00:00:41]} Rde6 {[%clk 00:09:23]} {[%emt 00:03:18]} 28. Kf1 {[%clk
00:24:00]} {[%emt 00:02:48]} Qd8 {[%clk 00:08:23]} {[%emt 00:01:31]} 29. Kf2
{[%clk 00:21:24]} {[%emt 00:03:07]} a6 {[%clk 00:08:23]} {[%emt 00:00:30]} 30.
a4 {[%clk 00:20:57]} {[%emt 00:00:57]} Qd6 {[%clk 00:08:23]} {[%emt 00:00:29]}
31. g3 {[%clk 00:19:16]} {[%emt 00:02:11]} Qf8 {[%clk 00:07:58]} {[%emt
00:00:55]} 32. Rh1 {[%clk 00:19:25]} {[%emt 00:00:21]} Qe7 {[%clk 00:07:29]}
{[%emt 00:00:59]} 33. Rhe1 {[%clk 00:18:08]} {[%emt 00:01:46]} b6 {[%clk
00:07:37]} {[%emt 00:00:22]} 34. Qc2 {[%clk 00:17:01]} {[%emt 00:01:37]} Qd7
{[%clk 00:06:48]} {[%emt 00:01:19]} 35. Kg2 {[%clk 00:16:14]} {[%emt 00:01:17]}
Qd6 {[%clk 00:05:27]} {[%emt 00:01:51]} 36. e4 {[%clk 00:14:42]} {[%emt
00:02:01]} fxe4 {[%clk 00:05:08]} {[%emt 00:00:50]} 37. fxe4 {[%clk 00:15:04]}
{[%emt 00:00:08]} dxe4 {[%clk 00:04:13]} {[%emt 00:01:25]} 38. d5 {[%clk
00:12:24]} {[%emt 00:03:10]} Re5 {[%clk 00:04:28]} {[%emt 00:00:15]} 39. Qd2
{[%clk 00:12:34]} {[%emt 00:00:20]} b5 {[%clk 00:02:00]} {[%emt 00:02:58]} 40.
axb5 {[%clk 00:11:22]} {[%emt 00:01:42]} axb5 {[%clk 00:02:23]} {[%emt
00:00:07]} 41. Qd4 {[%clk 00:11:28]} {[%emt 00:00:24]} Rg5 {[%clk 00:21:45]}
{[%emt 00:11:07]} 42. Re3 {[%clk 00:39:09]} {[%emt 00:02:49]} b4 {[%clk
00:17:26]} {[%emt 00:04:50]} 43. Rf1 {[%clk 00:39:01]} {[%emt 00:00:38]} bxc3
{[%clk 00:08:11]} {[%emt 00:09:46]} 44. Rxf6 {[%clk 00:39:22]} {[%emt
00:00:07]} Qe5 {[%clk 00:07:56]} {[%emt 00:00:46]} 45. Qxc3 {[%clk 00:39:12]}
{[%emt 00:00:40]} Qxc3 {[%clk 00:07:45]} {[%emt 00:00:42]} 46. Rxc3 {[%clk
00:39:34]} {[%emt 00:00:08]} Rxd5 {[%clk 00:03:54]} {[%emt 00:04:21]} 47. Rf2
{[%clk 00:38:32]} {[%emt 00:01:31]} e3 {[%clk 00:02:18]} {[%emt 00:02:06]} 48.
Re2 {[%clk 00:38:44]} {[%emt 00:00:18]} Rd2 {[%clk 00:01:30]} {[%emt 00:01:18]}
49. Kf3 {[%clk 00:38:42]} {[%emt 00:00:32]} Rxe2 {[%clk 00:01:38]} {[%emt
00:00:22]} 50. Kxe2 {[%clk 00:39:06]} {[%emt 00:00:06]} Rb8 {[%clk 00:01:58]}
{[%emt 00:00:10]} 51. Rxc4 {[%clk 00:37:40]} {[%emt 00:01:57]} Rxb2+ {[%clk
00:02:20]} {[%emt 00:00:09]} 52. Kxe3 {[%clk 00:38:02]} {[%emt 00:00:07]} Rh2
{[%clk 00:02:19]} {[%emt 00:00:31]} 53. Rc8+ {[%clk 00:38:26]} {[%emt
00:00:06]} Kf7 {[%clk 00:02:44]} {[%emt 00:00:05]} 54. Rc7+ {[%clk 00:38:51]}
{[%emt 00:00:05]} 1/2-1/2

[Event "Schack-SM 2022: Mastarklassen"]
[Site "Fyrishov, Idrottsgatan 2, Uppsala, Sweden"]
[Date "2022.07.10"]
[Round "9.8"]
[White "Carlstrom, Niklas"]
[Black "Mardell, Jimmy"]
[Result "1/2-1/2"]
[TimeControl "90 minutes for 40 moves + 30 minutes for the rest of the game + 30 seconds per move from move one."]
[WhiteFideId "1704648"]
[BlackFideId "1705610"]
[WhiteElo "2125"]
[BlackElo "2161"]

1. e4 {[%clk 01:30:40]} {[%emt 00:00:19]} c5 {[%clk 01:30:52]} {[%emt
00:00:09]} 2. c3 {[%clk 01:30:50]} {[%emt 00:00:20]} d5 {[%clk 01:31:04]}
{[%emt 00:00:18]} 3. exd5 {[%clk 01:31:12]} {[%emt 00:00:08]} Qxd5 {[%clk
01:31:30]} {[%emt 00:00:04]} 4. d4 {[%clk 01:31:24]} {[%emt 00:00:18]} Nc6
{[%clk 01:31:55]} {[%emt 00:00:06]} 5. Nf3 {[%clk 01:31:32]} {[%emt 00:00:22]}
cxd4 {[%clk 01:32:16]} {[%emt 00:00:09]} 6. cxd4 {[%clk 01:31:50]} {[%emt
00:00:11]} e5 {[%clk 01:32:42]} {[%emt 00:00:05]} 7. Nc3 {[%clk 01:32:00]}
{[%emt 00:00:19]} Bb4 {[%clk 01:33:07]} {[%emt 00:00:06]} 8. Bd2 {[%clk
01:32:08]} {[%emt 00:00:22]} Bxc3 {[%clk 01:33:29]} {[%emt 00:00:08]} 9. Bxc3
{[%clk 01:32:28]} {[%emt 00:00:09]} e4 {[%clk 01:33:53]} {[%emt 00:00:06]} 10.
Ne5 {[%clk 01:32:46]} {[%emt 00:00:12]} Nxe5 {[%clk 01:34:13]} {[%emt
00:00:11]} 11. dxe5 {[%clk 01:33:08]} {[%emt 00:00:08]} Ne7 {[%clk 01:34:38]}
{[%emt 00:00:05]} 12. Qxd5 {[%clk 01:33:08]} {[%emt 00:00:30]} Nxd5 {[%clk
01:35:03]} {[%emt 00:00:05]} 13. Bb5+ {[%clk 01:33:30]} {[%emt 00:00:07]} Bd7
{[%clk 01:35:27]} {[%emt 00:00:06]} 14. O-O-O {[%clk 01:33:39]} {[%emt
00:00:20]} Bxb5 {[%clk 01:35:19]} {[%emt 00:00:39]} 15. Rxd5 {[%clk 01:33:58]}
{[%emt 00:00:10]} 1/2-1/2

[Event "Schack-SM 2022: Mastarklassen"]
[Site "Fyrishov, Idrottsgatan 2, Uppsala, Sweden"]
[Date "2022.07.10"]
[Round "9.1"]
[White "Lind, Jan-Olov"]
[Black "Johansson, Thomas"]
[Result "1/2-1/2"]
[TimeControl "90 minutes for 40 moves + 30 minutes for the rest of the game + 30 seconds per move from move one."]
[WhiteFideId "1701193"]
[BlackFideId "1708244"]
[WhiteElo "2173"]
[BlackElo "2231"]

1. Nf3 {[%clk 01:30:56]} {[%emt 00:00:03]} d5 {[%clk 01:26:49]} {[%emt
00:04:12]} 2. g3 {[%clk 01:31:09]} {[%emt 00:00:18]} c6 {[%clk 01:27:12]}
{[%emt 00:00:06]} 3. Bg2 {[%clk 01:31:14]} {[%emt 00:00:25]} Nf6 {[%clk
01:27:36]} {[%emt 00:00:06]} 4. O-O {[%clk 01:31:28]} {[%emt 00:00:16]} Bf5
{[%clk 01:27:53]} {[%emt 00:00:12]} 5. d3 {[%clk 01:30:59]} {[%emt 00:01:00]}
e6 {[%clk 01:28:15]} {[%emt 00:00:09]} 6. Nbd2 {[%clk 01:30:37]} {[%emt
00:00:52]} h6 {[%clk 01:28:35]} {[%emt 00:00:09]} 7. Qe1 {[%clk 01:25:07]}
{[%emt 00:05:59]} Bh7 {[%clk 01:25:38]} {[%emt 00:03:27]} 8. e4 {[%clk
01:25:06]} {[%emt 00:00:32]} Be7 {[%clk 01:20:30]} {[%emt 00:05:38]} 9. Qe2
{[%clk 01:25:22]} {[%emt 00:00:14]} O-O {[%clk 01:20:52]} {[%emt 00:00:08]} 10.
b3 {[%clk 01:23:55]} {[%emt 00:01:57]} a5 {[%clk 01:18:06]} {[%emt 00:03:15]}
11. a3 {[%clk 01:16:03]} {[%emt 00:08:23]} Nbd7 {[%clk 01:04:35]} {[%emt
00:13:59]} 12. Bb2 {[%clk 01:13:23]} {[%emt 00:03:10]} Qc7 {[%clk 00:48:31]}
{[%emt 00:16:34]} 13. e5 {[%clk 00:55:38]} {[%emt 00:18:15]} Ne8 {[%clk
00:48:50]} {[%emt 00:00:11]} 14. Ne1 {[%clk 00:55:39]} {[%emt 00:00:29]} a4
{[%clk 00:47:12]} {[%emt 00:02:08]} 15. b4 {[%clk 00:52:30]} {[%emt 00:03:39]}
b5 {[%clk 00:43:47]} {[%emt 00:03:56]} 16. d4 {[%clk 00:42:26]} {[%emt
00:10:33]} Qd8 {[%clk 00:43:41]} {[%emt 00:00:35]} 1/2-1/2

[Event "Schack-SM 2022: Mastarklassen"]
[Site "Fyrishov, Idrottsgatan 2, Uppsala, Sweden"]
[Date "2022.07.10"]
[Round "9.2"]
[White "Crevatin, Leo"]
[Black "Tiger-Norqvist, Axel"]
[Result "1/2-1/2"]
[TimeControl "90 minutes for 40 moves + 30 minutes for the rest of the game + 30 seconds per move from move one."]
[WhiteTitle "CM"]
[WhiteFideId "1726307"]
[BlackFideId "1716816"]
[WhiteElo "2259"]
[BlackElo "2239"]

1. d4 {[%clk 01:30:55]} {[%emt 00:00:03]} Nf6 {[%clk 01:30:55]} {[%emt
00:00:06]} 2. c4 {[%clk 01:31:20]} {[%emt 00:00:05]} g6 {[%clk 01:31:20]}
{[%emt 00:00:05]} 3. Nc3 {[%clk 01:31:46]} {[%emt 00:00:04]} Bg7 {[%clk
01:31:43]} {[%emt 00:00:08]} 4. e4 {[%clk 01:32:11]} {[%emt 00:00:04]} O-O
{[%clk 01:32:02]} {[%emt 00:00:11]} 5. Nf3 {[%clk 01:32:37]} {[%emt 00:00:04]}
d6 {[%clk 01:32:22]} {[%emt 00:00:10]} 6. Be2 {[%clk 01:33:02]} {[%emt
00:00:05]} e5 {[%clk 01:32:35]} {[%emt 00:00:17]} 7. Be3 {[%clk 01:33:26]}
{[%emt 00:00:06]} exd4 {[%clk 01:31:09]} {[%emt 00:01:56]} 8. Nxd4 {[%clk
01:33:53]} {[%emt 00:00:02]} Nc6 {[%clk 01:31:09]} {[%emt 00:00:30]} 9. O-O
{[%clk 01:26:04]} {[%emt 00:08:18]} Re8 {[%clk 01:29:16]} {[%emt 00:02:24]} 10.
f3 {[%clk 01:25:47]} {[%emt 00:00:47]} a6 {[%clk 01:18:04]} {[%emt 00:11:42]}
11. Rc1 {[%clk 01:20:29]} {[%emt 00:05:48]} Bd7 {[%clk 01:14:35]} {[%emt
00:04:00]} 12. Qd2 {[%clk 01:15:49]} {[%emt 00:05:09]} Rb8 {[%clk 01:10:16]}
{[%emt 00:04:49]} 13. Nc2 {[%clk 01:11:55]} {[%emt 00:04:24]} Ne5 {[%clk
01:08:23]} {[%emt 00:02:24]} 14. a4 {[%clk 00:59:04]} {[%emt 00:13:21]} Be6
{[%clk 00:51:52]} {[%emt 00:17:01]} 15. b3 {[%clk 00:57:10]} {[%emt 00:02:24]}
Nc6 {[%clk 00:45:33]} {[%emt 00:06:50]} 16. Nd5 {[%clk 00:53:02]} {[%emt
00:04:37]} Nd7 {[%clk 00:43:34]} {[%emt 00:02:29]} 17. b4 {[%clk 00:49:49]}
{[%emt 00:03:43]} f5 {[%clk 00:38:37]} {[%emt 00:05:27]} 18. Bg5 {[%clk
00:45:23]} {[%emt 00:04:56]} Nf6 {[%clk 00:36:15]} {[%emt 00:02:53]} 19. b5
{[%clk 00:42:44]} {[%emt 00:03:09]} Ne5 {[%clk 00:36:24]} {[%emt 00:00:21]} 20.
exf5 {[%clk 00:41:04]} {[%emt 00:02:09]} Bxf5 {[%clk 00:36:32]} {[%emt
00:00:23]} 21. Nd4 {[%clk 00:34:18]} {[%emt 00:07:16]} Bd7 {[%clk 00:36:48]}
{[%emt 00:00:13]} 22. Qf4 {[%clk 00:28:21]} {[%emt 00:06:27]} Rf8 {[%clk
00:33:17]} {[%emt 00:04:01]} 23. Qh4 {[%clk 00:28:00]} {[%emt 00:00:51]} c6
{[%clk 00:31:03]} {[%emt 00:02:45]} 24. Nxf6+ {[%clk 00:25:01]} {[%emt
00:03:29]} Bxf6 {[%clk 00:31:25]} {[%emt 00:00:08]} 25. Bxf6 {[%clk 00:24:34]}
{[%emt 00:00:56]} Qxf6 {[%clk 00:31:15]} {[%emt 00:00:41]} 26. Qxf6 {[%clk
00:16:20]} {[%emt 00:08:43]} Rxf6 {[%clk 00:31:37]} {[%emt 00:00:08]} 27. f4
{[%clk 00:16:48]} {[%emt 00:00:02]} 1/2-1/2

[Event "Schack-SM 2022: Mastarklassen"]
[Site "Fyrishov, Idrottsgatan 2, Uppsala, Sweden"]
[Date "2022.07.10"]
[Round "9.3"]
[White "Strom-Engdahl, Alexander"]
[Black "Eriksson, Dan"]
[Result "0-1"]
[TimeControl "90 minutes for 40 moves + 30 minutes for the rest of the game + 30 seconds per move from move one."]
[WhiteFideId "1741586"]
[BlackFideId "1710095"]
[WhiteElo "2077"]
[BlackElo "2246"]

1. c4 {[%clk 01:30:42]} {[%emt 00:00:16]} e5 {[%clk 01:30:51]} {[%emt
00:00:09]} 2. Nc3 {[%clk 01:31:07]} {[%emt 00:00:05]} Nf6 {[%clk 01:31:14]}
{[%emt 00:00:07]} 3. g3 {[%clk 01:31:32]} {[%emt 00:00:05]} c6 {[%clk
01:31:16]} {[%emt 00:00:29]} 4. d4 {[%clk 01:30:25]} {[%emt 00:01:36]} exd4
{[%clk 01:28:31]} {[%emt 00:03:15]} 5. Qxd4 {[%clk 01:30:47]} {[%emt 00:00:08]}
d5 {[%clk 01:24:07]} {[%emt 00:04:54]} 6. Bg5 {[%clk 01:28:37]} {[%emt
00:02:40]} Nbd7 {[%clk 01:20:02]} {[%emt 00:04:35]} 7. Nf3 {[%clk 01:21:55]}
{[%emt 00:07:11]} Bc5 {[%clk 01:19:10]} {[%emt 00:01:22]} 8. Qd2 {[%clk
01:14:38]} {[%emt 00:07:47]} Qb6 {[%clk 01:12:41]} {[%emt 00:07:00]} 9. Be3
{[%clk 01:10:04]} {[%emt 00:05:04]} Bxe3 {[%clk 01:11:12]} {[%emt 00:01:58]} 10.
Qxe3+ {[%clk 01:10:25]} {[%emt 00:00:09]} Qxe3 {[%clk 01:11:35]} {[%emt
00:00:07]} 11. fxe3 {[%clk 01:10:51]} {[%emt 00:00:04]} dxc4 {[%clk 01:11:37]}
{[%emt 00:00:28]} 12. Rc1 {[%clk 01:05:03]} {[%emt 00:06:18]} O-O {[%clk
01:08:46]} {[%emt 00:03:21]} 13. h3 {[%clk 01:03:54]} {[%emt 00:01:39]} Re8
{[%clk 01:07:44]} {[%emt 00:01:32]} 14. Kf2 {[%clk 01:04:17]} {[%emt 00:00:08]}
Nb6 {[%clk 00:59:16]} {[%emt 00:08:58]} 15. Nd2 {[%clk 01:00:12]} {[%emt
00:04:35]} Bf5 {[%clk 00:53:21]} {[%emt 00:06:25]} 16. Bg2 {[%clk 01:00:11]}
{[%emt 00:00:31]} Rad8 {[%clk 00:47:01]} {[%emt 00:06:50]} 17. Rhd1 {[%clk
01:00:14]} {[%emt 00:00:28]} g5 {[%clk 00:45:43]} {[%emt 00:01:47]} 18. g4
{[%clk 00:58:06]} {[%emt 00:02:38]} Bg6 {[%clk 00:38:19]} {[%emt 00:07:53]} 19.
b3 {[%clk 00:56:50]} {[%emt 00:01:46]} cxb3 {[%clk 00:38:09]} {[%emt 00:00:40]}
20. axb3 {[%clk 00:56:38]} {[%emt 00:00:42]} h6 {[%clk 00:30:31]} {[%emt
00:08:07]} 21. Nc4 {[%clk 00:46:59]} {[%emt 00:10:09]} Nxc4 {[%clk 00:27:09]}
{[%emt 00:03:52]} 22. bxc4 {[%clk 00:47:04]} {[%emt 00:00:26]} Rxd1 {[%clk
00:25:14]} {[%emt 00:02:25]} 23. Rxd1 {[%clk 00:47:20]} {[%emt 00:00:14]} Kg7
{[%clk 00:23:01]} {[%emt 00:02:41]} 24. Rd2 {[%clk 00:42:15]} {[%emt 00:05:36]}
Be4 {[%clk 00:20:12]} {[%emt 00:03:15]} 25. Bxe4 {[%clk 00:40:53]} {[%emt
00:01:56]} Nxe4+ {[%clk 00:20:40]} {[%emt 00:00:02]} 26. Nxe4 {[%clk 00:41:15]}
{[%emt 00:00:08]} Rxe4 {[%clk 00:21:08]} {[%emt 00:00:02]} 27. Rd7 {[%clk
00:41:38]} {[%emt 00:00:07]} b6 {[%clk 00:21:27]} {[%emt 00:00:11]} 28. c5
{[%clk 00:38:50]} {[%emt 00:03:18]} Re5 {[%clk 00:21:44]} {[%emt 00:00:13]} 29.
Rxa7 {[%clk 00:39:12]} {[%emt 00:00:08]} Rxc5 {[%clk 00:22:07]} {[%emt
00:00:07]} 30. Rb7 {[%clk 00:39:35]} {[%emt 00:00:07]} b5 {[%clk 00:22:26]}
{[%emt 00:00:12]} 31. e4 {[%clk 00:39:58]} {[%emt 00:00:07]} Kf6 {[%clk
00:15:58]} {[%emt 00:06:57]} 32. Kf3 {[%clk 00:39:48]} {[%emt 00:00:40]} Rc3+
{[%clk 00:15:50]} {[%emt 00:00:38]} 33. e3 {[%clk 00:40:12]} {[%emt 00:00:06]}
Ke6 {[%clk 00:15:30]} {[%emt 00:00:49]} 34. Ke2 {[%clk 00:40:29]} {[%emt
00:00:13]} Rc1 {[%clk 00:13:54]} {[%emt 00:02:06]} 35. Kd2 {[%clk 00:39:55]}
{[%emt 00:01:05]} Rf1 {[%clk 00:12:50]} {[%emt 00:01:34]} 36. Ke2 {[%clk
00:39:43]} {[%emt 00:00:42]} Rf6 {[%clk 00:13:03]} {[%emt 00:00:16]} 37. Kd3
{[%clk 00:39:44]} {[%emt 00:00:30]} Ke5 {[%clk 00:12:51]} {[%emt 00:00:42]} 38.
Re7+ {[%clk 00:39:24]} {[%emt 00:00:50]} Kd6 {[%clk 00:09:58]} {[%emt
00:03:24]} 39. Rb7 {[%clk 00:39:41]} {[%emt 00:00:13]} Rf2 {[%clk 00:09:07]}
{[%emt 00:01:20]} 40. Kc3 {[%clk 00:39:22]} {[%emt 00:00:49]} Kc5 {[%clk
00:08:18]} {[%emt 00:01:19]} 41. e5 {[%clk 00:38:12]} {[%emt 00:01:41]} Kd5
{[%clk 00:06:00]} {[%emt 00:02:45]} 42. Re7 {[%clk 00:37:46]} {[%emt 00:00:57]}
c5 {[%clk 00:02:22]} {[%emt 00:04:09]} 43. e4+ {[%clk 00:37:56]} {[%emt
00:00:21]} Kxe4 {[%clk 00:02:37]} {[%emt 00:00:14]} 44. e6 {[%clk 00:38:22]}
{[%emt 00:00:04]} fxe6 {[%clk 00:02:57]} {[%emt 00:00:10]} 45. Rxe6+ {[%clk
00:38:47]} {[%emt 00:00:05]} Kd5 {[%clk 00:02:39]} {[%emt 00:00:48]} 46. Rxh6
{[%clk 00:39:12]} {[%emt 00:00:05]} b4+ {[%clk 00:02:23]} {[%emt 00:00:47]} 47.
Kb3 {[%clk 00:39:26]} {[%emt 00:00:16]} Rf3+ {[%clk 00:02:44]} {[%emt
00:00:08]} 48. Kb2 {[%clk 00:39:46]} {[%emt 00:00:10]} c4 {[%clk 00:02:39]}
{[%emt 00:00:35]} 49. Rh5 {[%clk 00:40:04]} {[%emt 00:00:12]} Kd4 {[%clk
00:02:39]} {[%emt 00:00:30]} 50. Rxg5 {[%clk 00:39:37]} {[%emt 00:00:58]} Rxh3
{[%clk 00:02:58]} {[%emt 00:00:10]} 51. Rf5 {[%clk 00:39:53]} {[%emt 00:00:14]}
Rh2+ {[%clk 00:03:12]} {[%emt 00:00:16]} 52. Kc1 {[%clk 00:39:50]} {[%emt
00:00:34]} c3 {[%clk 00:02:57]} {[%emt 00:00:45]} 53. Rf4+ {[%clk 00:38:26]}
{[%emt 00:01:53]} Kd3 {[%clk 00:03:19]} {[%emt 00:00:08]} 54. Rf3+ {[%clk
00:38:50]} {[%emt 00:00:06]} Kc4 {[%clk 00:03:31]} {[%emt 00:00:18]} 55. Rf4+
{[%clk 00:39:05]} {[%emt 00:00:14]} Kb3 {[%clk 00:03:48]} {[%emt 00:00:11]} 56.
Rf1 {[%clk 00:39:34]} {[%emt 00:00:04]} Rg2 {[%clk 00:03:42]} {[%emt 00:00:36]}
0-1